Cogmind - Beta 12 @@@ ROGUE MODE // 2023.10.04 @ 03:44:46 Player: LauraPalmer Result: Smashed by cave-in Performance ------------- Evolutions (2) 1000 Regions Visited (3) 600 Robots Destroyed (114) 570 Value Destroyed (3068) 3068 Prototype IDs (12) 240 Alien Tech Used (0) 0 Bonus (551) 551 TOTAL SCORE: 6029 Bonus ------- High Alert Combat Kills 551 Cogmind --------- Core Integrity 0/550 Matter 210/300 Energy 234/240 System Corruption 8% Temperature Cool (3) Movement Walking (190) Ox1 Location -8/Materials Parts ------- > --- POWER (1) -------- Nuclear Core > --- PROPULSION (4) --- Aluminum Leg Improved Carbon-fiber Leg > --- UTILITY (4) ------ Large Storage Unit Transport Network Coupler Advanced Targeting Computer Hacking Suite > --- WEAPON (2) ------- Heavy Ion Cannon Mini Grenade Launcher > --- INVENTORY (15) --- Improved Treads Armored Treads Improved Carbon-fiber Leg Improved Cooling System Trap Scanner Launcher Guidance Computer Reaction Control System Core Shielding Utility Shielding Insulated Plating Trap Extractor (0/4) Improved Assault Rifle Gauss Rifle Assault Cannon Remote Datajack Peak State ------------ > --- POWER ------------ Enhanced Nuclear Core > --- PROPULSION ------- Improved Treads Improved Treads Armored Treads Armored Wheel > --- UTILITY ---------- Large Storage Unit Transport Network Coupler Utility Shielding Recalibrator > --- WEAPON ----------- Heavy Ion Cannon Improved Assault Rifle > --- INVENTORY -------- Light Deuterium Engine Improved Treads Improved Treads Thermal Generator Improved Heat Sink Weight Redist. System Salvage Targeting Computer Advanced Targeting Computer Launcher Guidance Computer Core Shielding Heavy Ion Cannon Assault Cannon Mini Grenade Launcher Mini Grenade Launcher Remote Datajack [Rating: 32] Favorites ----------- Power Ion Engine Engine Ion Engine Power Core Enhanced Nuclear Core Propulsion Armored Wheel Treads Light Treads Leg Aluminum Leg Wheel Armored Wheel Flight Unit Improved Flight Unit Utility Large Storage Unit Device Structural Scanner Storage Large Storage Unit Processor Transport Network Coupler Hackware Hacking Suite Protection Propulsion Shielding Weapon Improved Assault Rifle Energy Gun Small Laser Energy Cannon Heavy Ion Cannon Ballistic Gun Improved Assault Rifle Ballistic Cannon Assault Cannon Launcher Mini Grenade Launcher Special Weapon Remote Datajack Special Melee Weapon Datajack Build | -11 -10 -9 -8 ------- Run | Jun Mat Mat Mat Slots Evolved 4 | . . 2 2 Power . | . . . . Propulsion 2 | . . 1 1 Utility 2 | . . 1 1 Weapon . | . . . . Parts Attached 155 | 14 20 58 63 Power 14 | 2 2 5 5 Engine 10 | 2 2 5 1 Core 4 | . . . 4 Reactor . | . . . . Propulsion 42 | 7 8 5 22 Treads 12 | 1 . . 11 Leg 14 | 3 3 . 8 Wheel 15 | 3 5 4 3 Hover . | . . . . Flight 1 | . . 1 . Utility 24 | 2 2 8 12 Device 7 | 1 1 2 3 Storage 3 | 1 1 1 . Processor 2 | . . . 2 Hackware 1 | . . . 1 Protection 11 | . . 5 6 Artifact . | . . . . Weapon 75 | 3 8 40 24 Energy Gun 12 | 1 3 4 4 Energy Cannon 15 | . . 6 9 Ballistic Gun 19 | 2 4 12 1 Ballistic Cannon 4 | . . . 4 Launcher 11 | . . 9 2 Special Weapon 13 | . 1 8 4 Impact Weapon . | . . . . Slashing Weapon . | . . . . Piercing Weapon . | . . . . Special Melee Weapon 1 | . . 1 . Unidentified Prototypes 6 | . 1 3 2 Parts Lost 26 | . 3 5 18 Power 5 | . . 2 3 Propulsion 9 | . 1 . 8 Utility 7 | . 1 2 4 Weapon 5 | . 1 1 3 Highest Loss Streak 4 | . 3 2 4 To Critical Strikes . | . . . . Average Slot Usage (%) 98 | . 97 99 97 Engine 7 | . 14 10 2 Core 2 | . . . 6 Treads 3 | . . . 8 Leg 5 | . 7 . 8 Wheel 23 | . 19 33 17 Device 9 | . 12 14 2 Storage 10 | . 14 11 9 Processor 4 | . . . 10 Protection 7 | . . 7 11 Energy Gun 3 | . 6 3 2 Energy Cannon 5 | . . 7 6 Ballistic Gun 8 | . 20 8 3 Ballistic Cannon 1 | . . . 4 Launcher 1 | . . 2 . Naked Turns . | . . . . Heaviest Build 47 | 12 22 38 47 Greatest Support 66 | 26 26 36 66 Greatest Overweight (x) 4 | 1 4 3 3 Average Overweight (x) . | . . . . Largest Inventory Capacity 15 | 8 10 15 15 Average Capacity 13 | 7 8 13 15 Most Carried 15 | 8 10 15 15 Average Carried 12 | 3 8 13 14 Final Capacity 15 | 8 10 15 15 Final Carried 15 | 8 10 15 15 Class Distribution -------------------- 86% | Mutant 13% | Scavenger-Mutant Dominant Class ---------------- Mutant | -10/Materials Mutant | -9/Materials Mutant | -8/Materials Resources | -11 -10 -9 -8 ----------- Run | Jun Mat Mat Mat Matter Collected 2834 | 222 455 835 1322 Remotely . | . . . . Salvage Created 3772 | 20 378 1371 2003 Parts 232 | 3 18 108 103 Haulers Intercepted 8 | . 1 4 3 Recyclers Shooed 2 | . . 2 . Parts Field Recycled . | . . . . Retrieved Matter . | . . . . Parts Self-Destructed . | . . . . Prevented . | . . . . Kills | -11 -10 -9 -8 ------- Run | Jun Mat Mat Mat Combat Hostiles Destroyed 77 | . 8 31 38 Guns 32 | . 8 13 11 Cannons 37 | . . 10 27 AOE 8 | . . 8 . Classes Destroyed 14 | 1 5 4 4 Worker 4 | . . 2 2 Builder 2 | . . 2 . Tunneler 1 | 1 . . . Hauler 8 | . 1 4 3 Recycler 4 | . . 1 3 Mechanic 1 | . . . 1 Operator 6 | . 1 5 . Watcher 11 | . 3 4 4 Swarmer 22 | . 3 12 7 Grunt 32 | . 5 10 17 Duelist 1 | . . . 1 Sentry 18 | . . 9 9 Specialist 2 | . . . 2 Hunter 2 | . . . 2 Best Kill Streak 8 | 1 3 8 6 Combat Bots Only 7 | . 3 7 6 Max Kills in Single Turn 3 | 1 1 3 2 Gunslinging . | . . . . Exploded 3 | . . 3 . Melee . | . . . . Uniques/NPCs Destroyed . | . . . . Combat | -11 -10 -9 -8 -------- Run | Jun Mat Mat Mat Damage Taken 5259 | . 437 1266 3556 Core 848 | . 89 184 575 Absorbed by Shields . | . . . . Redirected to Shielding 179 | . . 23 156 Regen/Repaired (Parts) 203 | . . 29 174 Core Remaining (%) 72 | 100 64 54 . Volleys Fired 325 | 2 41 117 165 Largest 2 | 1 2 2 2 Hottest 130 | 40 120 98 130 Shots Fired 559 | 2 75 210 272 Gun 289 | 2 73 119 95 Cannon 218 | . . 60 158 Launcher 31 | . . 21 10 Special 21 | . 2 10 9 Kinetic 280 | . 59 77 144 Thermal 239 | 2 16 112 109 Explosive 31 | . . 21 10 Electromagnetic . | . . . . Robot Hit Streak 15 | 1 12 10 15 Robot Miss Streak 5 | 1 3 5 4 Penetration Max . | . . . . Secondary Targets . | . . . . Shots Hit Robots 336 | 1 42 114 179 Core Hits 165 | 1 20 66 78 Critical Kills . | . . . . Critical Parts Destroyed 1 | . 1 . . Critical Strikes 8 | . 1 2 5 Burn 3 | . . 2 1 Destroy 1 | . 1 . . Blast 4 | . . . 4 Melee Attacks 3 | . . 3 . Impact . | . . . . Slashing . | . . . . Piercing . | . . . . Sneak Attacks 3 | . . 3 . Combat Hostiles . | . . . . Follow-up Attacks . | . . . . Damage Inflicted 7020 | 11 587 2616 3806 Guns 2515 | 11 539 1003 962 Cannons 3540 | . . 696 2844 Explosions 866 | . . 866 . Melee . | . . . . Ramming 6 | . . 6 . Kinetic 3062 | . 449 675 1938 Thermal 3086 | 11 138 1069 1868 Explosive 866 | . . 866 . Electromagnetic . | . . . . Impact . | . . . . Slashing . | . . . . Piercing . | . . . . Highest Corruption 6 | . 2 6 4 Average Corruption 3 | . 2 3 4 Corruption Purged . | . . . . Corruption Blocked . | . . . . Effects 27 | . 3 24 . Message Errors 10 | . 2 8 . Matter Fused 7 | . . 7 . Heat Flow Errors 3 | . . 3 . Energy Discharges 3 | . . 3 . Data Loss (minor) 1 | . . 1 . Data Loss (major) 2 | . 1 1 . Weapon Failures 1 | . . 1 . Overload Shots . | . . . . Overflow Damage 14 | . . 2 12 Projectiles 14 | . . 2 12 Explosions . | . . . . Melee . | . . . . Knockbacks 8 | . . . 8 Impact . | . . . . Kinetic 7 | . . . 7 Secondary 1 | . . . 1 Self-Inflicted Damage 71 | . . 29 42 Shots 3 | . . 1 2 Rammed 1 | . . 1 . Targets Rammed 1 | . . 1 . Kicked . | . . . . Crushed . | . . . . Highest Temperature 340 | . 85 328 340 Average Temperature 88 | . 36 74 104 Received Heat Transfer 1911 | . 258 492 1161 Effects 8 | . . . 8 Shutdowns 1 | . . . 1 Energy Bleed 2 | . . . 2 Interference 4 | . . . 4 Matter Decay 1 | . . . 1 Siege Activations . | . . . . Robots Corrupted . | . . . . Combat Hostiles . | . . . . Parts Fried . | . . . . Impact Corruptions . | . . . . Robots Melted . | . . . . Combat Hostiles . | . . . . Parts Melted 10 | . . 3 7 Heat Transferred 5579 | 25 300 2331 2923 Parts Sabotaged . | . . . . Parts Stolen . | . . . . Parts Stripped . | . . . . Power Chain Reactions . | . . . . Missiles Intercepted . | . . . . Alert | -11 -10 -9 -8 ------- Run | Jun Mat Mat Mat Peak Influence 949 | 5 231 705 949 Initial 295 | . 3 33 295 Average 372 | . 94 339 551 Maximum Alert Level 3 | . 1 3 3 Low Security (%) 29 | 100 88 28 . Level 1 28 | . 11 34 32 Level 2 26 | . . 34 32 Level 3 15 | . . 2 35 Level 4 . | . . . . Level 5 . | . . . . High Security . | . . . . Max Security . | . . . . Squads Dispatched 13 | . 1 4 8 Investigation 2 | . . . 2 Extermination . | . . . . Reinforcement 8 | . 1 4 3 Assault . | . . . . Garrison 3 | . . . 3 Intercept . | . . . . Searches Triggered . | . . . . Construction Impeded 1 | . . . 1 Haulers Reinforced . | . . . . Active Scanning Responses . | . . . . Cargo Convoy Interrupts . | . . . . Stealth | -11 -10 -9 -8 --------- Run | Jun Mat Mat Mat Distress Signals 8 | . . 4 4 Communications Jammed . | . . . . Distress Signals . | . . . . Times Spotted 128 | . 17 58 53 Peak Tracking Total 7 | . 3 5 7 Tactical Retreats 13 | . 1 3 9 Traps | -11 -10 -9 -8 ------- Run | Jun Mat Mat Mat Traps Triggered 6 | . 2 3 1 Indirectly . | . . . . Trap Hack Attempts . | . . . . Triggered . | . . . . Disarmed . | . . . . Reprogrammed . | . . . . Reused . | . . . . Traps Extracted . | . . . . Installed . | . . . . Triggered . | . . . . Machines | -11 -10 -9 -8 ---------- Run | Jun Mat Mat Mat Machines Disabled 4 | . . 3 1 Max in Single Turn 1 | . . 1 1 Machines Repaired . | . . . . Machines Sabotaged . | . . . . Overloaded Fab Kills . | . . . . Hacking | -11 -10 -9 -8 --------- Run | Jun Mat Mat Mat Machines Accessed 29 | . 9 9 11 Terminals 16 | . 6 4 6 Fabricators . | . . . . Repair Stations 3 | . 1 1 1 Recycling Units 6 | . 2 2 2 Scanalyzers 4 | . . 2 2 Garrison Access . | . . . . Total Hacks 92 | . 30 28 34 Successful 54 | . 17 14 23 Failed 37 | . 13 14 10 Catastrophic 4 | . 3 . 1 Database Lockouts 1 | . . . 1 Manual 16 | . 9 2 5 Terminals 50 | . 19 12 19 Fabricators . | . . . . Repair Stations 10 | . 4 2 4 Recycling Units 16 | . 7 6 3 Scanalyzers 16 | . . 8 8 Garrison Access . | . . . . Terminal Hacks 22 | . 11 2 9 Record 4 | . 2 . 2 Robot Analysis 1 | . . . 1 Prototype ID Bank 4 | . 1 1 2 Branch Access Points 1 | . . . 1 Emergency Access Points 1 | . 1 . . Alert Level 2 | . . . 2 Unreport Threat 1 | . . . 1 Locate Traps 2 | . 2 . . Transport Status 1 | . 1 . . Hauler Manifests 2 | . 1 1 . Registered Components 1 | . 1 . . Zone Layout 2 | . 2 . . Fabricator Hacks . | . . . . Repair Station Hacks 7 | . 1 2 4 Scan Component 4 | . 1 1 2 Repair 3 | . . 1 2 Recycling Unit Hacks 11 | . 5 3 3 Process 4 | . 3 1 . Report Inventory 5 | . 2 1 2 Retrieve Matter 1 | . . 1 . Retrieve Components 1 | . . . 1 Scanalyzer 14 | . . 7 7 Insert Component 7 | . . 3 4 Analyze 7 | . . 4 3 Garrison Access Hacks . | . . . . Unauthorized Hacks . | . . . . Terminals . | . . . . Fabricators . | . . . . Repair Stations . | . . . . Recycling Units . | . . . . Scanalyzers . | . . . . Garrison Access . | . . . . Data Cores Recovered 2 | . . 2 . Used 2 | . . 2 . Hacking Detections 26 | . 9 9 8 Full Trace Events 5 | . 1 1 3 Feedback Events . | . . . . Feedback Blocked . | . . . . Robot Schematics Acquired . | . . . . Robots Built . | . . . . Authchips . | . . . . Time . | . . . . Total Robot Build Rating . | . . . . Part Schematics Acquired 6 | . . 3 3 Parts Built . | . . . . Authchips . | . . . . Time . | . . . . Total Part Build Rating . | . . . . Parts Repaired 3 | . . 1 2 Time 108 | . . 44 64 Parts Recycled . | . . . . Recycled Matter 170 | . 3 167 . Retrieved Matter 167 | . . 167 . Retrieved Components 9 | . . . 9 Parts Scanalyzed 6 | . . 3 3 Part Schematics Acquired 6 | . . 3 3 Parts Damaged 1 | . . . 1 Bothacking | -11 -10 -9 -8 ------------ Run | Jun Mat Mat Mat Used RIF Installer . | . . . . Robots Hacked 6 | . . 1 5 Non-combat 5 | . . 1 4 Combat 1 | . . . 1 Robot Hacks Applied 8 | . . 2 6 parse_system 4 | . . 1 3 no_distress 2 | . . . 2 find_recycling 1 | . . 1 . find_station 1 | . . . 1 Relay Couplers Released . | . . . . Fabnet Peak Effective % . | . . . . Robots Rewired . | . . . . Allies Hacked . | . . . . Hacks Repelled . | . . . . Allies | -11 -10 -9 -8 -------- Run | Jun Mat Mat Mat Total Allies . | . . . . Largest Group . | . . . . Highest-Rated Group . | . . . . Highest-Rated Ally . | . . . . Total Orders . | . . . . Ally Attacks . | . . . . Total Damage . | . . . . Kills . | . . . . Allies Corrupted . | . . . . Allies Melted . | . . . . Intel | -11 -10 -9 -8 ------- Run | Jun Mat Mat Mat Robot Analysis Total 1 | . . . 1 Derelict Logs Recovered . | . . . . Drone Launches . | . . . . Drone Recoveries . | . . . . Exploration | -11 -10 -9 -8 ------------- Run | Jun Mat Mat Mat Turns Passed 4756 | 82 949 1763 1962 Spaces Moved 3104 | 47 757 1167 1133 Core 2 | 1 1 . . Treads 7 | . . . 7 Legs 500 | 28 161 . 311 Wheels 2595 | 18 595 1167 815 Hover . | . . . . Flight . | . . . . Fastest Speed 50 | 50 80 90 90 Average Speed 99 | 106 96 94 107 Slowest Speed 250 | 120 250 135 190 Overloaded Moves . | . . . . Propulsion Burnouts . | . . . . Robots Hopped . | . . . . Cave-ins Triggered 2 | . . . 2 Exploration Rate (%) 64 | 4 91 86 75 Regions Visited 3 Branch Regions . Pre-discovered Areas . | . . . . Known Exits Taken . | . . . . Unknown Exits Taken 3 | 1 1 1 . Scrap Searched . | . . . . Spaces Dug 75 | . . 39 36 Terrain Destroyed 284 | . . 136 148 Melee . | . . . . Projectile 29 | . . . 29 AOE 255 | . . 136 119 Terrain Rammed . | . . . . Walls Destroyed . | . . . . Machines Disabled . | . . . . Actions | -11 -10 -9 -8 --------- Run | Jun Mat Mat Mat Total 4246 | 74 910 1628 1634 Wait 381 | . 38 178 165 Move 3099 | 46 756 1166 1131 Hop . | . . . . Pick Up 110 | 6 24 40 40 Fast Attach 58 | 9 9 14 26 Attach 92 | 4 10 40 38 Detach 54 | 6 5 21 22 Swap 6 | 1 1 4 . Drop 116 | . 26 44 46 Fire 325 | 2 41 117 165 Melee 3 | . . 3 . Ram 1 | . . 1 . Kick . | . . . . Crush . | . . . . Escape Stasis 1 | . . . 1 Rewire . | . . . . Trap . | . . . . Miscellaneous . | . . . . Route ------- -11/Junkyard -10/Materials (discovered 5 exits: *Mat x3 / [*Min x2]) -9/Materials (discovered 3 exits: *Mat x3) -8/Materials (discovered 4 exits: [*Fac x2] / *Sto x2) History --------- Turn | Location | Event 26 | -11/Junkyard | Discovered new exit (range 15) 83 | -11/Junkyard | Entered Materials 163 | -10/Materials | Lost 3 parts (1n1u1w) 230 | -10/Materials | Discovered new exit (range 15) 328 | -10/Materials | Build established: Mutant 502 | -10/Materials | Discovered new exit (range 13) 557 | -10/Materials | Discovered new exit (range 7) 719 | -10/Materials | Discovered new exit (range 19) 914 | -10/Materials | Discovered new exit (range 15) 1032 | -10/Materials | Entered another Materials area 1032 | -9/Materials | Evolved 2 slots: Propulsion x1, Utility x1 1514 | -9/Materials | Discovered new exit (range 13) 1604 | -9/Materials | Repaired Broken Arm. Wheel? 1649 | -9/Materials | Destroyed 7 combat bots 2247 | -9/Materials | Discovered new exit (range 16) 2446 | -9/Materials | Discovered new exit (range 16) 2795 | -9/Materials | Entered another Materials area 2795 | -8/Materials | Evolved 2 slots: Propulsion x1, Utility x1 3040 | -8/Materials | Discovered new exit (range 11) 3135 | -8/Materials | Discovered new exit (range 4) 3136 | -8/Materials | Central database locked down 3150 | -8/Materials | Discovered new exit (range 16) 3338 | -8/Materials | Identified exit to Storage 3565 | -8/Materials | Repaired Arm. Wheel 3598 | -8/Materials | Repaired Arm. Wheel? 3625 | -8/Materials | Garrison activated, responded to threat 3911 | -8/Materials | Lost 4 parts (1p2u1w) 4210 | -8/Materials | Core integrity fell below 50% 4293 | -8/Materials | Core integrity fell below 20% 4310 | -8/Materials | Lost 4 parts (1p2n1w) 4392 | -8/Materials | Discovered new exit (range 7) 4619 | -8/Materials | Build established: Scavenger-Mutant 4749 | -8/Materials | Crushed by falling debris 4757 | -8/Materials | Crushed by falling debris 4757 | -8/Materials | Smashed by cave-in Last Messages --------------- 04608_ Acquired Insulated Plating. 04610_ R-06 Scavenger collects Hvy. Assault Rifle. 04613_ R-06 Scavenger collects Heat Sink. 04616_ R-06 Scavenger collects Lgt. Armor Plating. 04621_ Acquired 22 matter. 04663_ Dropped Thermal Generator. 04677_ Acquired Trap Extractor. 04708_ K-01 Serf cleans the Matter Filter. 04712_ Dropped Imp. Assault Rifle. 04714_ Acquired Imp. Assault Rifle. 04715_ Matter Filter disabled. 04724_ The unstable cave ceiling collapses. 04749_ Crushed by falling debris. [Achievement: Unlikely Earthworm] 04749_ Aluminum Leg destroyed. 04749_ System corrupted by crushing effect (+4). 04750_ The unstable cave ceiling collapses. 04757_ Crushed by falling debris. 04757_ Aluminum Leg destroyed. 04757_ System corrupted by crushing effect (+4). Map ----- +----------------------------------------------------+ | !![= == #??# """ %#?????????# ^ | | ==%!==%= #??# """ #?????????# | | *![ *% #??# #?????????# | | ### #########+###=! #??## #######?????????# | | ??# #????# ## ##???##????????????????# | | ??# #????# ## #??????????????????#####+## | | ??# #????# ## #??????????????????# """ # | | ??# #?##?# ## #??????????????????# """ # | | ??# ###### ## % #??????????????????# """ # | | ### + ## ##?????????????????# # | | ### ######### ##?????????????????# = # | | # ########[% ##????????????????# # | | # ##????????????????######## | | + % ##???????????????????????# | | # #????????????????????????# | | ### ########### #????????????????????????# | | #?# #### #???##### #????????????????????????# | | #?# ##?####???????# #????????????????????????# | | #?# #?????????????# #????????????????????????# | | #?# #?????????????# #???????????????########## | | ###?# #?????????????# #???????????????#/ # | | ????# #?????????????# #???????????????# """"" # | | ????? #?????????????# #???????????????# """"" # | | ????? #?????????????# #??###??????????# """"" # | | ?????+?????????????## #### ######??#### """"" + | | ???????????????????# @ #### """ # | | ???????????????????# # / """" # | | ???????????????????+ T # # ## """ + | | ???????????????????# # # # # | | ???????????????????# # # # # ######## | | ???????????????????## ### # ## #?# | | ????????????????????# ??## ### #?# | | ????????????????????# ????##### #####?#"" ! | | ????????????????????# ?????????### #?????#"Y | | ????????????????????# ???????????######?????#"" | | ????????????????????#???????????????????????# | | ????????????????????????????????????????????###### | | ?????????????????????????????????????????????????? | | ?????????????????????????????????????????????????? | | ?????????????????????????????????????????????????? | | ?????????????????????????????????????????????????? | | ?????????????????????????????????????????????????? | | ?????????????????????????????????????????????????? | | ?????????????????????????????????????????????????? | | ?????????????????????????????????????????????????? | | ?????????????????????????????????????????????????? | | ?????????????????????????????????????????????????? | | ?????????????????????????????????????????????????? | | ?????????????????????????????????????????????????? | | ?????????????????????????????????????????????????? | +----------------------------------------------------+ Best States ------------- Heat Dissipation 41 Energy Generation 17 Energy Capacity 300 Matter Stores 300 Matter Capacity 300 Sight Range 16 Robot Scan Range 14 Terrain Scan Density 10 Armor Coverage 150 Resistance: TH 10 Propulsion Shielding 33 Utility Shielding 33 Evasion (%) 55 Targeting Accuracy 8 Recoil Reduction 3 Offensive Hacking 10 Item Schematics ----------------- Arm. Wheel | -9/Materials | Scanalyzed Mni. Grenade Launcher | -9/Materials | Scanalyzed Hrd. Light Armor Plating | -9/Materials | Scanalyzed Thermal Generator | -8/Materials | Scanalyzed Launcher Guidance Computer | -8/Materials | Scanalyzed Salvage Targeting Computer | -8/Materials | Scanalyzed Robot Schematics ------------------ None Fabricated ------------ Nothing Alien Tech Used ----------------- None Achievements -------------- Unlikely Earthworm Challenges ------------ None Game ------ Seed AdvancedThermalCompactor Manual? 0 Play Time 04:19:16 Cumulative 25.1 hours Start 2023.10.03 @ 18:28:45 End 2023.10.04 @ 03:44:46 Sessions 1 Manual Loads 0 Difficulty Rogue Special Mode None Game No. 5 Rogue 5 Adventurer 0 Explorer 0 Win Type - Total 0 Types 0/0/0/0/0/0/0/0/0 Lore% 4 Gallery% 18 Achievement% 11 Wizard Run 0 Options --------- ASCII 0 Keyboard 0 Movement Numpad Keybinds 0 Fullscreen 1 Font 24/Proggy Map View 76x50 Tactical HUD 1 Map Filters NONE Filters NONE Steam 1 RUN: 864583bd-5f78-4fbb-bc22-f58b66145dde